[Event "January 9 Early 2024"]
[Site "https://www.chess.com"]
[Date "2024.01.11"]
[Round "9"]
[White "Babayeva, Nasrin"]
[Black "Subramanian, Anusha"]
[Result "0-1"]
[Board "178"]
[TimeControl "180+1"]
[WhiteFideId "13416626"]
[BlackFideId "477710"]
[WhiteElo "1841"]
[BlackElo "2105"]
[WhiteTeam "AZE"]
[BlackTeam "ENG"]
[WhiteClock "0:00:07"]
[BlackClock "0:00:04"]

1. c4 {[%clk 0:02:38]}  e5 {[%clk 0:02:58]} 2. g3 {[%clk 0:02:38]}  Nc6 {[%clk 0:02:58]} 3. Bg2 {[%clk 0:02:37]}  f5 {[%clk 0:02:58]} 4. Nc3 {[%clk 0:02:38]}  Nf6 {[%clk 0:02:58]} 5. Nf3 {[%clk 0:02:38]}  Bb4 {[%clk 0:02:57]} 6. Nd5 {[%clk 0:02:37]}  Be7 {[%clk 0:02:54]} 7. d4 {[%clk 0:02:35]}  e4 {[%clk 0:02:51]} 8. Ne5 {[%clk 0:02:30]}  d6 {[%clk 0:02:42]} 9. Nxc6 {[%clk 0:02:26]}  bxc6 {[%clk 0:02:43]} 10. Nxe7 {[%clk 0:02:20]}  Qxe7 {[%clk 0:02:42]} 11. O-O {[%clk 0:02:21]}  O-O {[%clk 0:02:42]} 12. Bg5 {[%clk 0:02:18]}  h6 {[%clk 0:02:41]} 13. Bxf6 {[%clk 0:02:17]}  Rxf6 {[%clk 0:02:35]} 14. e3 {[%clk 0:02:18]}  Bd7 {[%clk 0:02:27]} 15. Qc2 {[%clk 0:02:16]}  Raf8 {[%clk 0:02:26]} 16. Qa4 {[%clk 0:02:11]}  g5 {[%clk 0:02:11]} 17. Rae1 {[%clk 0:01:56]}  d5 {[%clk 0:02:07]} 18. cxd5 {[%clk 0:01:52]}  cxd5 {[%clk 0:02:07]} 19. Qxa7 {[%clk 0:01:52]}  f4 {[%clk 0:02:06]} 20. exf4 {[%clk 0:01:48]}  gxf4 {[%clk 0:02:05]} 21. Qxc7 {[%clk 0:01:43]}  f3 {[%clk 0:01:59]} 22. Bh3 {[%clk 0:01:43]}  Rd6 {[%clk 0:01:47]} 23. Re3 {[%clk 0:01:30]}  Rc8 {[%clk 0:01:43]} 24. Qb7 {[%clk 0:01:18]}  Rc2 {[%clk 0:01:09]} 25. Bxd7 {[%clk 0:01:08]}  Rxd7 {[%clk 0:01:06]} 26. Qa8+ {[%clk 0:01:06]}  Rd8 {[%clk 0:01:01]} 27. Qa6 {[%clk 0:00:55]}  Rd6 {[%clk 0:00:58]} 28. Qa3 {[%clk 0:00:52]}  Qe6 {[%clk 0:00:53]} 29. Rfe1 {[%clk 0:00:40]}  Qh3 {[%clk 0:00:48]} 30. Rxf3 {[%clk 0:00:40]}  exf3 {[%clk 0:00:40]} 31. Qa8+ {[%clk 0:00:35]}  Qc8 {[%clk 0:00:26]} 32. Re8+ {[%clk 0:00:31]}  Qxe8 {[%clk 0:00:20]} 33. Qxe8+ {[%clk 0:00:32]}  Kg7 {[%clk 0:00:20]} 34. Qe5+ {[%clk 0:00:25]}  Rf6 {[%clk 0:00:19]} 35. h4 {[%clk 0:00:18]}  Rc1+ {[%clk 0:00:11]} 36. Kh2 {[%clk 0:00:17]}  Rc2 {[%clk 0:00:09]} 37. Qe7+ {[%clk 0:00:15]}  Rf7 {[%clk 0:00:08]} 38. Qe5+ {[%clk 0:00:14]}  Rf6 {[%clk 0:00:09]} 39. Qxd5 {[%clk 0:00:08]}  Rxf2+ {[%clk 0:00:07]} 40. Kh3 {[%clk 0:00:08]}  Rg2 {[%clk 0:00:03]} 41. Qb7+ {[%clk 0:00:06]}  Rf7 {[%clk 0:00:03]} 42. Qe4 {[%clk 0:00:02]}  f2 {[%clk 0:00:02]} 43. Qxg2 {[%clk 0:00:02]}  f1=Q {[%clk 0:00:02]} 44. Qxf1 {[%clk 0:00:02]}  Rxf1 {[%clk 0:00:03]} 45. b4 {[%clk 0:00:02]}  Rb1 {[%clk 0:00:02]} 46. a3 {[%clk 0:00:01]}  Rb3 {[%clk 0:00:03]} 47. d5 {[%clk 0:00:02]}  Rxa3 {[%clk 0:00:03]} 48. d6 {[%clk 0:00:03]}  Rd3 {[%clk 0:00:03]} 49. d7 {[%clk 0:00:04]}  Rxd7 {[%clk 0:00:03]} 50. b5 {[%clk 0:00:05]}  Rb7 {[%clk 0:00:04]} 51. b6 {[%clk 0:00:05]}  Rxb6 {[%clk 0:00:04]} 52. Kg4 {[%clk 0:00:06]}  Kf6 {[%clk 0:00:04]} 53. Kh3 {[%clk 0:00:07]}  Kf5 {[%clk 0:00:04]} 0-1

[Event "January 9 Early 2024"]
[Site "https://www.chess.com"]
[Date "2024.01.11"]
[Round "9"]
[White "Marchesich, Giovanni"]
[Black "Ronka, Erik"]
[Result "0-1"]
[Board "179"]
[TimeControl "180+1"]
[WhiteFideId "2824790"]
[BlackFideId "505080"]
[WhiteElo "2388"]
[BlackElo "2528"]
[WhiteTeam "ITA"]
[BlackTeam "FIN"]
[WhiteClock "0:00:01"]
[BlackClock "0:00:05"]

1. d4 {[%clk 0:03:00]}  Nf6 {[%clk 0:02:57]} 2. Nc3 {[%clk 0:02:59]}  d5 {[%clk 0:02:55]} 3. Bf4 {[%clk 0:02:59]}  c5 {[%clk 0:02:54]} 4. e4 {[%clk 0:02:55]}  Nxe4 {[%clk 0:02:51]} 5. Nxe4 {[%clk 0:02:50]}  dxe4 {[%clk 0:02:52]} 6. d5 {[%clk 0:02:32]}  a6 {[%clk 0:02:35]} 7. f3 {[%clk 0:02:26]}  e6 {[%clk 0:02:14]} 8. d6 {[%clk 0:01:54]}  Nc6 {[%clk 0:02:13]} 9. fxe4 {[%clk 0:01:51]}  e5 {[%clk 0:02:13]} 10. Bg3 {[%clk 0:01:46]}  Qxd6 {[%clk 0:02:12]} 11. Qh5 {[%clk 0:01:37]}  Qg6 {[%clk 0:02:06]} 12. Qxg6 {[%clk 0:01:27]}  hxg6 {[%clk 0:02:05]} 13. Nf3 {[%clk 0:01:28]}  f6 {[%clk 0:02:02]} 14. O-O-O {[%clk 0:01:26]}  Ke7 {[%clk 0:01:47]} 15. Nh4 {[%clk 0:01:20]}  Rh6 {[%clk 0:01:36]} 16. Be2 {[%clk 0:01:16]}  Be6 {[%clk 0:01:20]} 17. h3 {[%clk 0:00:59]}  Nd4 {[%clk 0:01:14]} 18. Bf3 {[%clk 0:00:51]}  g5 {[%clk 0:01:11]} 19. Nf5+ {[%clk 0:00:49]}  Bxf5 {[%clk 0:01:09]} 20. exf5 {[%clk 0:00:50]}  Nxf3 {[%clk 0:01:08]} 21. gxf3 {[%clk 0:00:50]}  Rd8 {[%clk 0:01:07]} 22. Bf2 {[%clk 0:00:44]}  b6 {[%clk 0:00:49]} 23. b4 {[%clk 0:00:45]}  cxb4 {[%clk 0:00:43]} 24. Bxb6 {[%clk 0:00:41]}  Rxd1+ {[%clk 0:00:43]} 25. Rxd1 {[%clk 0:00:41]}  Rxh3 {[%clk 0:00:41]} 26. Ba5 {[%clk 0:00:17]}  Ke8 {[%clk 0:00:37]} 27. Rd8+ {[%clk 0:00:16]}  Kf7 {[%clk 0:00:37]} 28. Rd7+ {[%clk 0:00:14]}  Ke8 {[%clk 0:00:21]} 29. Rd8+ {[%clk 0:00:14]}  Ke7 {[%clk 0:00:21]} 30. Rb8 {[%clk 0:00:12]}  Kf7 {[%clk 0:00:18]} 31. Rb7+ {[%clk 0:00:12]}  Kg8 {[%clk 0:00:16]} 32. Rb8 {[%clk 0:00:12]}  g6 {[%clk 0:00:10]} 33. Bxb4 {[%clk 0:00:11]}  gxf5 {[%clk 0:00:10]} 34. Bxf8 {[%clk 0:00:09]}  Rxf3 {[%clk 0:00:09]} 35. Kb2 {[%clk 0:00:09]}  g4 {[%clk 0:00:09]} 36. c4 {[%clk 0:00:08]}  g3 {[%clk 0:00:09]} 37. Bc5+ {[%clk 0:00:07]}  Kf7 {[%clk 0:00:09]} 38. Bb6 {[%clk 0:00:06]}  e4 {[%clk 0:00:09]} 39. Rb7+ {[%clk 0:00:03]}  Ke6 {[%clk 0:00:08]} 40. Rh7 {[%clk 0:00:02]}  e3 {[%clk 0:00:07]} 41. Kc3 {[%clk 0:00:02]}  g2 {[%clk 0:00:07]} 42. Rg7 {[%clk 0:00:02]}  e2+ {[%clk 0:00:07]} 43. Kd2 {[%clk 0:00:02]}  Rf4 {[%clk 0:00:02]} 44. Kxe2 {[%clk 0:00:02]}  Rxc4 {[%clk 0:00:02]} 45. Be3 {[%clk 0:00:01]}  Rc2+ {[%clk 0:00:02]} 46. Bd2 {[%clk 0:00:02]}  Rxa2 {[%clk 0:00:03]} 47. Rxg2 {[%clk 0:00:02]}  f4 {[%clk 0:00:03]} 48. Rg8 {[%clk 0:00:02]}  Kf5 {[%clk 0:00:04]} 49. Rc8 {[%clk 0:00:01]}  Ra4 {[%clk 0:00:04]} 50. Kf3 {[%clk 0:00:01]}  Ra3+ {[%clk 0:00:04]} 51. Kf2 {[%clk 0:00:01]}  Ra2 {[%clk 0:00:04]} 52. Ke2 {[%clk 0:00:01]}  a5 {[%clk 0:00:05]} 0-1

[Event "January 9 Early 2024"]
[Site "https://www.chess.com"]
[Date "2024.01.11"]
[Round "9"]
[White "Mirza, Diana"]
[Black "Tarnowska, Aleksandra"]
[Result "0-1"]
[Board "181"]
[TimeControl "180+1"]
[WhiteFideId "2503999"]
[BlackFideId "1180967"]
[WhiteElo "2003"]
[BlackElo "2182"]
[WhiteTeam "IRL"]
[BlackTeam "POL"]
[WhiteClock "0:00:10"]
[BlackClock "0:00:16"]

1. e4 {[%clk 0:03:00]}  c5 {[%clk 0:02:57]} 2. Nf3 {[%clk 0:02:50]}  e6 {[%clk 0:02:58]} 3. d4 {[%clk 0:02:51]}  cxd4 {[%clk 0:02:57]} 4. Nxd4 {[%clk 0:02:52]}  a6 {[%clk 0:02:57]} 5. c4 {[%clk 0:02:52]}  Qc7 {[%clk 0:02:57]} 6. Nc3 {[%clk 0:02:53]}  Nf6 {[%clk 0:02:58]} 7. Be2 {[%clk 0:02:50]}  Bb4 {[%clk 0:02:58]} 8. f3 {[%clk 0:02:43]}  Nc6 {[%clk 0:02:55]} 9. Be3 {[%clk 0:02:42]}  Ne5 {[%clk 0:02:54]} 10. Qb3 {[%clk 0:02:36]}  Bc5 {[%clk 0:02:44]} 11. O-O-O {[%clk 0:02:19]}  O-O {[%clk 0:02:28]} 12. g4 {[%clk 0:02:17]}  d6 {[%clk 0:02:15]} 13. g5 {[%clk 0:02:17]}  Nfd7 {[%clk 0:02:08]} 14. f4 {[%clk 0:02:16]}  Nc6 {[%clk 0:02:06]} 15. f5 {[%clk 0:01:58]}  e5 {[%clk 0:01:49]} 16. Nd5 {[%clk 0:01:45]}  Nxd4 {[%clk 0:01:34]} 17. Bxd4 {[%clk 0:01:43]}  Qa5 {[%clk 0:01:24]} 18. Bc3 {[%clk 0:01:34]}  Qd8 {[%clk 0:01:20]} 19. g6 {[%clk 0:01:33]}  fxg6 {[%clk 0:01:12]} 20. fxg6 {[%clk 0:01:33]}  h6 {[%clk 0:01:03]} 21. Rdf1 {[%clk 0:01:05]}  Nf6 {[%clk 0:01:00]} 22. Nxf6+ {[%clk 0:01:03]}  Rxf6 {[%clk 0:00:59]} 23. Rxf6 {[%clk 0:00:57]}  Qxf6 {[%clk 0:01:00]} 24. Rf1 {[%clk 0:00:25]}  Qxg6 {[%clk 0:00:49]} 25. Bd3 {[%clk 0:00:20]}  b6 {[%clk 0:00:47]} 26. Bb4 {[%clk 0:00:20]}  Bh3 {[%clk 0:00:40]} 27. Bxc5 {[%clk 0:00:19]}  Bxf1 {[%clk 0:00:31]} 28. Bxb6 {[%clk 0:00:16]}  Bxd3 {[%clk 0:00:31]} 29. c5+ {[%clk 0:00:14]}  Kh7 {[%clk 0:00:28]} 30. Qxd3 {[%clk 0:00:14]}  dxc5 {[%clk 0:00:27]} 31. Bxc5 {[%clk 0:00:14]}  Rc8 {[%clk 0:00:27]} 32. b4 {[%clk 0:00:14]}  a5 {[%clk 0:00:27]} 33. Kb2 {[%clk 0:00:13]}  axb4 {[%clk 0:00:26]} 34. Bxb4 {[%clk 0:00:14]}  Qb6 {[%clk 0:00:25]} 35. Kb3 {[%clk 0:00:14]}  Rd8 {[%clk 0:00:22]} 36. Qc4 {[%clk 0:00:13]}  Qe3+ {[%clk 0:00:21]} 37. Bc3 {[%clk 0:00:13]}  Rb8+ {[%clk 0:00:21]} 38. Ka3 {[%clk 0:00:13]}  Qa7+ {[%clk 0:00:19]} 39. Qa4 {[%clk 0:00:12]}  Qc5+ {[%clk 0:00:17]} 40. Bb4 {[%clk 0:00:11]}  Qe3+ {[%clk 0:00:16]} 41. Qb3 {[%clk 0:00:11]}  Ra8+ {[%clk 0:00:15]} 42. Kb2 {[%clk 0:00:11]}  Qxe4 {[%clk 0:00:14]} 43. a4 {[%clk 0:00:10]}  Qe2+ {[%clk 0:00:14]} 44. Ka3 {[%clk 0:00:11]}  Rd8 {[%clk 0:00:13]} 45. Qb1+ {[%clk 0:00:09]}  Kh8 {[%clk 0:00:12]} 46. Qg6 {[%clk 0:00:07]}  Rd3+ {[%clk 0:00:11]} 47. Bc3 {[%clk 0:00:07]}  Rxc3+ {[%clk 0:00:11]} 48. Kb4 {[%clk 0:00:07]}  Qc4+ {[%clk 0:00:11]} 49. Ka5 {[%clk 0:00:07]}  Qc5+ {[%clk 0:00:11]} 50. Ka6 {[%clk 0:00:08]}  Qc6+ {[%clk 0:00:11]} 51. Qxc6 {[%clk 0:00:07]}  Rxc6+ {[%clk 0:00:12]} 52. Kb5 {[%clk 0:00:06]}  Rc2 {[%clk 0:00:12]} 53. a5 {[%clk 0:00:07]}  Rxh2 {[%clk 0:00:13]} 54. a6 {[%clk 0:00:07]}  Rb2+ {[%clk 0:00:14]} 55. Ka4 {[%clk 0:00:06]}  Ra2+ {[%clk 0:00:15]} 56. Kb3 {[%clk 0:00:06]}  Rxa6 {[%clk 0:00:15]} 57. Kc2 {[%clk 0:00:07]}  e4 {[%clk 0:00:15]} 58. Kd2 {[%clk 0:00:07]}  Ra3 {[%clk 0:00:15]} 59. Ke2 {[%clk 0:00:07]}  h5 {[%clk 0:00:16]} 60. Ke1 {[%clk 0:00:08]}  h4 {[%clk 0:00:16]} 61. Ke2 {[%clk 0:00:09]}  h3 {[%clk 0:00:16]} 62. Ke1 {[%clk 0:00:10]}  Ra2 {[%clk 0:00:16]} 63. Kf1 {[%clk 0:00:10]}  h2 {[%clk 0:00:16]} 0-1

[Event "January 9 Early 2024"]
[Site "https://www.chess.com"]
[Date "2024.01.11"]
[Round "9"]
[White "Hrebenshchykova, Yelyzaveta"]
[Black "Kraiouchkine, Nikita"]
[Result "0-1"]
[Board "182"]
[TimeControl "180+1"]
[WhiteFideId "14159899"]
[BlackFideId "2607140"]
[WhiteElo "2495"]
[BlackElo "2632"]
[WhiteTeam "UKR"]
[BlackTeam "CAN"]
[WhiteClock "0:00:02"]
[BlackClock "0:00:24"]

1. e4 {[%clk 0:03:00]}  e5 {[%clk 0:03:00]} 2. Nf3 {[%clk 0:02:59]}  Nc6 {[%clk 0:03:00]} 3. Bb5 {[%clk 0:02:59]}  f5 {[%clk 0:03:01]} 4. d3 {[%clk 0:02:58]}  fxe4 {[%clk 0:03:01]} 5. dxe4 {[%clk 0:02:58]}  Nf6 {[%clk 0:03:02]} 6. Nc3 {[%clk 0:02:52]}  Bb4 {[%clk 0:03:01]} 7. Qd3 {[%clk 0:02:50]}  Qe7 {[%clk 0:02:56]} 8. O-O {[%clk 0:02:47]}  Bxc3 {[%clk 0:02:56]} 9. bxc3 {[%clk 0:02:46]}  d6 {[%clk 0:02:55]} 10. a4 {[%clk 0:02:30]}  Be6 {[%clk 0:02:54]} 11. Ng5 {[%clk 0:02:03]}  Bd7 {[%clk 0:02:52]} 12. f4 {[%clk 0:01:59]}  h6 {[%clk 0:02:50]} 13. Nf3 {[%clk 0:01:58]}  exf4 {[%clk 0:02:30]} 14. Bxf4 {[%clk 0:01:56]}  O-O {[%clk 0:02:31]} 15. Rfe1 {[%clk 0:01:46]}  Ng4 {[%clk 0:02:23]} 16. Bg3 {[%clk 0:01:38]}  a6 {[%clk 0:02:09]} 17. Bxc6 {[%clk 0:01:32]}  Bxc6 {[%clk 0:02:08]} 18. h3 {[%clk 0:01:28]}  Ne5 {[%clk 0:02:05]} 19. Nxe5 {[%clk 0:01:26]}  dxe5 {[%clk 0:02:04]} 20. Qe3 {[%clk 0:01:16]}  Rad8 {[%clk 0:01:59]} 21. a5 {[%clk 0:01:15]}  Qe6 {[%clk 0:01:39]} 22. Qc5 {[%clk 0:01:12]}  Rfe8 {[%clk 0:01:37]} 23. Re2 {[%clk 0:00:57]}  Bb5 {[%clk 0:01:29]} 24. Rf2 {[%clk 0:00:57]}  c6 {[%clk 0:01:28]} 25. Re1 {[%clk 0:00:46]}  Qd6 {[%clk 0:01:25]} 26. Qxd6 {[%clk 0:00:40]}  Rxd6 {[%clk 0:01:26]} 27. Rf5 {[%clk 0:00:40]}  Rd2 {[%clk 0:01:19]} 28. Rxe5 {[%clk 0:00:38]}  Rxe5 {[%clk 0:01:17]} 29. Bxe5 {[%clk 0:00:39]}  Rxc2 {[%clk 0:01:17]} 30. Bd4 {[%clk 0:00:38]}  Kf7 {[%clk 0:01:15]} 31. Re3 {[%clk 0:00:34]}  Ra2 {[%clk 0:01:03]} 32. Rf3+ {[%clk 0:00:33]}  Ke6 {[%clk 0:01:03]} 33. Bxg7 {[%clk 0:00:27]}  Rxa5 {[%clk 0:01:03]} 34. Rf6+ {[%clk 0:00:28]}  Ke7 {[%clk 0:01:01]} 35. Rxh6 {[%clk 0:00:28]}  Ra1+ {[%clk 0:00:57]} 36. Kh2 {[%clk 0:00:28]}  Re1 {[%clk 0:00:54]} 37. e5 {[%clk 0:00:26]}  a5 {[%clk 0:00:52]} 38. Bf6+ {[%clk 0:00:26]}  Kf7 {[%clk 0:00:49]} 39. Rh7+ {[%clk 0:00:25]}  Ke6 {[%clk 0:00:49]} 40. Rxb7 {[%clk 0:00:18]}  a4 {[%clk 0:00:49]} 41. Ra7 {[%clk 0:00:16]}  Rc1 {[%clk 0:00:48]} 42. h4 {[%clk 0:00:16]}  Rxc3 {[%clk 0:00:48]} 43. h5 {[%clk 0:00:17]}  Bd3 {[%clk 0:00:39]} 44. h6 {[%clk 0:00:16]}  a3 {[%clk 0:00:38]} 45. h7 {[%clk 0:00:16]}  Bxh7 {[%clk 0:00:38]} 46. Rxh7 {[%clk 0:00:16]}  c5 {[%clk 0:00:33]} 47. Re7+ {[%clk 0:00:15]}  Kf5 {[%clk 0:00:33]} 48. Ra7 {[%clk 0:00:15]}  Rb3 {[%clk 0:00:33]} 49. Bg7 {[%clk 0:00:14]}  c4 {[%clk 0:00:33]} 50. Bf8 {[%clk 0:00:10]}  Kxe5 {[%clk 0:00:30]} 51. Rxa3 {[%clk 0:00:09]}  Rb8 {[%clk 0:00:28]} 52. Bg7+ {[%clk 0:00:09]}  Ke4 {[%clk 0:00:28]} 53. Bf6 {[%clk 0:00:04]}  Rf8 {[%clk 0:00:28]} 54. Bg7 {[%clk 0:00:04]}  Rf7 {[%clk 0:00:28]} 55. Bb2 {[%clk 0:00:03]}  Rf2 {[%clk 0:00:27]} 56. Bg7 {[%clk 0:00:02]}  Rf7 {[%clk 0:00:26]} 57. Bb2 {[%clk 0:00:02]}  Rh7+ {[%clk 0:00:27]} 58. Kg1 {[%clk 0:00:01]}  Kd5 {[%clk 0:00:27]} 59. Bc3 {[%clk 0:00:01]}  Rb7 {[%clk 0:00:27]} 60. Ra5+ {[%clk 0:00:02]}  Ke4 {[%clk 0:00:27]} 61. Rc5 {[%clk 0:00:01]}  Kd3 {[%clk 0:00:27]} 62. Bf6 {[%clk 0:00:02]}  Rb6 {[%clk 0:00:27]} 63. Be5 {[%clk 0:00:01]}  Ra6 {[%clk 0:00:24]} 64. g4 {[%clk 0:00:02]}  Rg6 {[%clk 0:00:24]} 0-1

[Event "January 9 Early 2024"]
[Site "https://www.chess.com"]
[Date "2024.01.11"]
[Round "9"]
[White "Espinoza Villanueva, Rodrigo"]
[Black "Travkina, Anastasia"]
[Result "1/2-1/2"]
[Board "183"]
[TimeControl "180+1"]
[WhiteFideId "5140188"]
[BlackFideId "24129151"]
[WhiteElo "2591"]
[BlackElo "2462"]
[WhiteTeam "MEX"]
[BlackTeam "RUS"]
[WhiteClock "0:00:06"]
[BlackClock "0:00:13"]

1. e4 {[%clk 0:03:00]}  c5 {[%clk 0:02:59]} 2. Nf3 {[%clk 0:03:00]}  d6 {[%clk 0:02:59]} 3. c3 {[%clk 0:02:58]}  Nf6 {[%clk 0:02:58]} 4. Be2 {[%clk 0:02:57]}  g6 {[%clk 0:02:58]} 5. O-O {[%clk 0:02:55]}  Bg7 {[%clk 0:02:58]} 6. e5 {[%clk 0:02:53]}  dxe5 {[%clk 0:02:56]} 7. Nxe5 {[%clk 0:02:54]}  O-O {[%clk 0:02:53]} 8. d4 {[%clk 0:02:54]}  cxd4 {[%clk 0:02:51]} 9. cxd4 {[%clk 0:02:55]}  Nc6 {[%clk 0:02:48]} 10. Nxc6 {[%clk 0:02:52]}  bxc6 {[%clk 0:02:49]} 11. Nc3 {[%clk 0:02:52]}  Rb8 {[%clk 0:02:47]} 12. Bf3 {[%clk 0:02:51]}  Nd5 {[%clk 0:02:40]} 13. Nxd5 {[%clk 0:02:42]}  cxd5 {[%clk 0:02:41]} 14. b3 {[%clk 0:02:43]}  Qa5 {[%clk 0:02:20]} 15. Bf4 {[%clk 0:02:36]}  Rb7 {[%clk 0:02:06]} 16. Re1 {[%clk 0:02:35]}  Bf5 {[%clk 0:02:02]} 17. Qe2 {[%clk 0:02:29]}  Bxd4 {[%clk 0:01:57]} 18. Rad1 {[%clk 0:02:28]}  Bc3 {[%clk 0:01:55]} 19. Rxd5 {[%clk 0:02:26]}  Qb4 {[%clk 0:01:47]} 20. Bh6 {[%clk 0:02:08]}  Bxe1 {[%clk 0:01:43]} 21. Bxf8 {[%clk 0:02:08]}  Kxf8 {[%clk 0:01:43]} 22. Rd8+ {[%clk 0:01:59]}  Kg7 {[%clk 0:01:43]} 23. Bxb7 {[%clk 0:02:00]}  Bc3 {[%clk 0:01:28]} 24. Bf3 {[%clk 0:01:56]}  e5 {[%clk 0:01:26]} 25. h3 {[%clk 0:01:51]}  h5 {[%clk 0:01:24]} 26. Rd5 {[%clk 0:01:34]}  e4 {[%clk 0:01:12]} 27. Rxf5 {[%clk 0:01:23]}  gxf5 {[%clk 0:01:13]} 28. Bxh5 {[%clk 0:01:21]}  Be5 {[%clk 0:01:13]} 29. Qe3 {[%clk 0:01:12]}  Bf6 {[%clk 0:01:09]} 30. g4 {[%clk 0:01:06]}  Qa5 {[%clk 0:00:53]} 31. a4 {[%clk 0:01:00]}  Qd5 {[%clk 0:00:51]} 32. g5 {[%clk 0:00:48]}  Be5 {[%clk 0:00:47]} 33. Qxa7 {[%clk 0:00:45]}  f4 {[%clk 0:00:42]} 34. g6 {[%clk 0:00:35]}  Qxb3 {[%clk 0:00:28]} 35. Qxf7+ {[%clk 0:00:28]}  Qxf7 {[%clk 0:00:28]} 36. gxf7 {[%clk 0:00:29]}  Bc3 {[%clk 0:00:25]} 37. Kf1 {[%clk 0:00:24]}  f3 {[%clk 0:00:22]} 38. Kg1 {[%clk 0:00:20]}  Bb4 {[%clk 0:00:22]} 39. h4 {[%clk 0:00:19]}  Ba5 {[%clk 0:00:16]} 40. Kh2 {[%clk 0:00:16]}  Bc7+ {[%clk 0:00:16]} 41. Kh3 {[%clk 0:00:14]}  Bb6 {[%clk 0:00:12]} 42. Kg3 {[%clk 0:00:12]}  Bc7+ {[%clk 0:00:12]} 43. Kg4 {[%clk 0:00:11]}  Bb6 {[%clk 0:00:11]} 44. Kf4 {[%clk 0:00:09]}  e3 {[%clk 0:00:11]} 45. Kxf3 {[%clk 0:00:06]}  exf2 {[%clk 0:00:12]} 46. Ke2 {[%clk 0:00:05]}  Bc5 {[%clk 0:00:11]} 47. Bf3 {[%clk 0:00:05]}  Bb6 {[%clk 0:00:10]} 48. h5 {[%clk 0:00:05]}  Kxf7 {[%clk 0:00:10]} 49. h6 {[%clk 0:00:04]}  Kg6 {[%clk 0:00:11]} 50. h7 {[%clk 0:00:02]}  Kxh7 {[%clk 0:00:11]} 51. Be4+ {[%clk 0:00:03]}  Kg7 {[%clk 0:00:11]} 52. Kf1 {[%clk 0:00:03]}  Kf6 {[%clk 0:00:12]} 53. Bc6 {[%clk 0:00:04]}  Ke5 {[%clk 0:00:12]} 54. Bb5 {[%clk 0:00:05]}  Kd4 {[%clk 0:00:12]} 55. Be8 {[%clk 0:00:05]}  Kc5 {[%clk 0:00:13]} 56. Bb5 {[%clk 0:00:05]}  Kb4 {[%clk 0:00:13]} 57. Be8 {[%clk 0:00:05]}  Ka5 {[%clk 0:00:13]} 58. Bd7 {[%clk 0:00:06]}  Kb4 {[%clk 0:00:13]} 1/2-1/2

[Event "January 9 Early 2024"]
[Site "https://www.chess.com"]
[Date "2024.01.11"]
[Round "9"]
[White "Hayrapetyan, Hovik"]
[Black "Jakubowski, Krzysztof"]
[Result "1-0"]
[Board "185"]
[TimeControl "180+1"]
[WhiteFideId "13302639"]
[BlackFideId "1112848"]
[WhiteElo "2815"]
[BlackElo "2672"]
[WhiteTeam "ARM"]
[BlackTeam "POL"]
[WhiteClock "0:00:03"]
[BlackClock "0:00:12"]

1. d4 {[%clk 0:03:00]}  Nf6 {[%clk 0:02:59]} 2. c4 {[%clk 0:03:00]}  e6 {[%clk 0:02:58]} 3. Nc3 {[%clk 0:03:01]}  Bb4 {[%clk 0:02:57]} 4. Nf3 {[%clk 0:03:01]}  b6 {[%clk 0:02:55]} 5. g3 {[%clk 0:02:48]}  Bb7 {[%clk 0:02:50]} 6. Bd2 {[%clk 0:02:42]}  c5 {[%clk 0:02:26]} 7. dxc5 {[%clk 0:02:37]}  bxc5 {[%clk 0:02:21]} 8. Bg2 {[%clk 0:02:36]}  O-O {[%clk 0:02:20]} 9. O-O {[%clk 0:02:35]}  d5 {[%clk 0:02:18]} 10. cxd5 {[%clk 0:02:32]}  exd5 {[%clk 0:02:18]} 11. a3 {[%clk 0:02:24]}  Bxc3 {[%clk 0:02:15]} 12. Bxc3 {[%clk 0:02:12]}  d4 {[%clk 0:02:10]} 13. Be1 {[%clk 0:02:11]}  Nbd7 {[%clk 0:02:08]} 14. b4 {[%clk 0:02:08]}  Re8 {[%clk 0:02:00]} 15. bxc5 {[%clk 0:01:59]}  Nxc5 {[%clk 0:01:58]} 16. Qxd4 {[%clk 0:01:50]}  Rc8 {[%clk 0:01:20]} 17. Bb4 {[%clk 0:01:37]}  Bxf3 {[%clk 0:00:51]} 18. Qxd8 {[%clk 0:01:32]}  Rexd8 {[%clk 0:00:52]} 19. Bxf3 {[%clk 0:01:31]}  Nb3 {[%clk 0:00:52]} 20. Rad1 {[%clk 0:01:30]}  Nd4 {[%clk 0:00:49]} 21. Kg2 {[%clk 0:01:24]}  Nxf3 {[%clk 0:00:44]} 22. Rxd8+ {[%clk 0:01:22]}  Rxd8 {[%clk 0:00:43]} 23. Kxf3 {[%clk 0:01:23]}  h5 {[%clk 0:00:41]} 24. Rc1 {[%clk 0:01:17]}  Ng4 {[%clk 0:00:38]} 25. h3 {[%clk 0:01:14]}  Ne5+ {[%clk 0:00:38]} 26. Ke4 {[%clk 0:01:05]}  Re8 {[%clk 0:00:38]} 27. Kd5 {[%clk 0:01:03]}  Nd7 {[%clk 0:00:38]} 28. e3 {[%clk 0:00:56]}  Nf6+ {[%clk 0:00:38]} 29. Kd4 {[%clk 0:00:56]}  Rd8+ {[%clk 0:00:38]} 30. Ke5 {[%clk 0:00:46]}  Rd5+ {[%clk 0:00:31]} 31. Kf4 {[%clk 0:00:46]}  g5+ {[%clk 0:00:32]} 32. Kf3 {[%clk 0:00:46]}  Rf5+ {[%clk 0:00:32]} 33. Ke2 {[%clk 0:00:37]}  Ne4 {[%clk 0:00:32]} 34. Be1 {[%clk 0:00:37]}  Rb5 {[%clk 0:00:28]} 35. Rc8+ {[%clk 0:00:32]}  Kh7 {[%clk 0:00:27]} 36. Kf3 {[%clk 0:00:29]}  f5 {[%clk 0:00:25]} 37. g4 {[%clk 0:00:27]}  Rb1 {[%clk 0:00:19]} 38. gxf5 {[%clk 0:00:25]}  Rxe1 {[%clk 0:00:17]} 39. Kxe4 {[%clk 0:00:25]}  h4 {[%clk 0:00:17]} 40. Kf3 {[%clk 0:00:18]}  Rg1 {[%clk 0:00:16]} 41. Rc4 {[%clk 0:00:17]}  Kg7 {[%clk 0:00:15]} 42. Rg4 {[%clk 0:00:16]}  Rh1 {[%clk 0:00:15]} 43. Kg2 {[%clk 0:00:12]}  Ra1 {[%clk 0:00:15]} 44. Rxg5+ {[%clk 0:00:10]}  Kf6 {[%clk 0:00:15]} 45. Rh5 {[%clk 0:00:09]}  Rxa3 {[%clk 0:00:15]} 46. e4 {[%clk 0:00:10]}  a5 {[%clk 0:00:15]} 47. Rh6+ {[%clk 0:00:09]}  Kg5 {[%clk 0:00:14]} 48. Rg6+ {[%clk 0:00:09]}  Kf4 {[%clk 0:00:14]} 49. Re6 {[%clk 0:00:09]}  Rb3 {[%clk 0:00:13]} 50. f6 {[%clk 0:00:09]}  Rb8 {[%clk 0:00:13]} 51. e5 {[%clk 0:00:03]}  Rg8+ {[%clk 0:00:13]} 52. Kf1 {[%clk 0:00:03]}  Ra8 {[%clk 0:00:14]} 53. f7 {[%clk 0:00:03]}  Rf8 {[%clk 0:00:12]} 54. Re7 {[%clk 0:00:03]}  a4 {[%clk 0:00:11]} 55. e6 {[%clk 0:00:04]}  Kf5 {[%clk 0:00:12]} 56. Re8 {[%clk 0:00:03]} 1-0